Cogmind - Beta 13 @@@ ROGUE MODE // 2024.03.27 @ 18:10:28 Player: f_ Result: Destroyed self with YOLO Cannon Performance ------------- Evolutions (0) 0 Regions Visited (4) 800 Robots Destroyed (12) 60 Value Destroyed (350) 350 Prototype IDs (23) 460 Alien Tech Used (0) 0 Bonus (300) 300 TOTAL SCORE: 1970 Bonus ------- Aligned with FarCom 300 Cogmind --------- Core Integrity 0/250 Matter 263/300 Energy 30/100 System Corruption 0% Temperature Cool (20) Movement Rolling (115) Ox1 Location -9/Mines Parts ------- > --- POWER (1) -------- (None) > --- PROPULSION (2) --- Compact Wheel > --- UTILITY (2) ------ Medium Storage Unit > --- WEAPON (2) ------- YOLO Cannon > --- INVENTORY (10) --- Improved Heat Sink Visual Processing Unit Power Shielding Light Armor Plating Medium Laser Particle Cannon Datajack Peak State ------------ > --- POWER ------------ (None) > --- PROPULSION ------- Compact Wheel > --- UTILITY ---------- Medium Storage Unit Light Armor Plating > --- WEAPON ----------- YOLO Cannon > --- INVENTORY -------- Improved Heat Sink Visual Processing Unit Power Shielding Light Armor Plating Particle Cannon Datajack [Rating: 24] Favorites ----------- Power Ion Engine Engine Ion Engine Propulsion Compact Wheel Wheel Compact Wheel Utility Medium Storage Unit Device Sensor Array Storage Medium Storage Unit Protection Light Armor Plating Weapon Medium Laser Energy Gun Medium Laser Energy Cannon YOLO Cannon Build | -11 -10 -10 -10 -9 ------- Run | Yrd Mat Min Exi Min Slots Evolved . | . . . . . Power . | . . . . . Propulsion . | . . . . . Utility . | . . . . . Weapon . | . . . . . Parts Attached 12 | 6 3 1 2 . Power 1 | 1 . . . . Engine 1 | 1 . . . . Core . | . . . . . Reactor . | . . . . . Propulsion 3 | 2 . . 1 . Treads . | . . . . . Leg . | . . . . . Wheel 3 | 2 . . 1 . Hover . | . . . . . Flight . | . . . . . Utility 4 | 1 2 1 . . Device 1 | . 1 . . . Storage 2 | 1 1 . . . Processor . | . . . . . Hackware . | . . . . . Protection 1 | . . 1 . . Artifact . | . . . . . Weapon 4 | 2 1 . 1 . Energy Gun 3 | 2 1 . . . Energy Cannon 1 | . . . 1 . Ballistic Gun . | . . . . . Ballistic Cannon . | . . . . . Launcher . | . . . . . Special Weapon . | . . . . . Impact Weapon . | . . . . . Slashing Weapon . | . . . . . Piercing Weapon . | . . . . . Special Melee Weapon . | . . . . . Unidentified Prototypes . | . . . . . Parts Lost 8 | . 1 6 . 1 Power 1 | . . 1 . . Propulsion 2 | . . 2 . . Utility 2 | . . 1 . 1 Weapon 3 | . 1 2 . . Highest Loss Streak 5 | . 1 5 . 1 To Critical Strikes . | . . . . . Average Slot Usage (%) 83 | . 98 90 50 57 Engine 10 | . 14 12 . . Wheel 22 | . 28 23 14 14 Device 9 | . 13 12 . . Storage 14 | . 14 14 14 14 Protection 3 | . . 1 14 14 Energy Gun 19 | . 26 24 . . Energy Cannon 1 | . . . 7 14 Naked Turns . | . . . . . Heaviest Build 31 | 14 19 19 31 31 Greatest Support 32 | 32 32 32 16 16 Greatest Overweight (x) 4 | . . 4 1 1 Average Overweight (x) . | . . 1 . 1 Largest Inventory Capacity 10 | 8 10 10 10 10 Average Capacity 9 | 7 9 10 10 10 Most Carried 7 | 3 7 7 7 7 Average Carried 5 | 1 3 6 5 5 Final Capacity 10 | 8 10 10 10 10 Final Carried 7 | 1 7 6 5 7 Class Distribution -------------------- 100% | Mutant Dominant Class ---------------- Mutant | -10/Materials Mutant | -10/Mines Mutant | -10/Exiles Mutant | -9/Mines Resources | -11 -10 -10 -10 -9 ----------- Run | Yrd Mat Min Exi Min Matter Collected 243 | 36 187 . . 20 Remotely . | . . . . . Salvage Created 443 | . 365 78 . . Parts 19 | . 17 2 . . Haulers Intercepted 1 | . 1 . . . Recyclers Shooed 1 | . 1 . . . Parts Field Recycled . | . . . . . Retrieved Matter . | . . . . . Parts Self-Destructed . | . . . . . Prevented . | . . . . . Kills | -11 -10 -10 -10 -9 ------- Run | Yrd Mat Min Exi Min Combat Hostiles Destroyed 7 | . 5 2 . . Guns 7 | . 5 2 . . Classes Destroyed 5 | . 5 . . . Hauler 1 | . 1 . . . Recycler 1 | . 1 . . . Operator 1 | . 1 . . . Watcher 2 | . 2 . . . Grunt 7 | . 5 2 . . Best Kill Streak 3 | . 3 2 . . Combat Bots Only 2 | . 2 2 . . Max Kills in Single Turn 1 | . 1 1 . . Gunslinging . | . . . . . Exploded . | . . . . . Melee . | . . . . . Uniques/NPCs Destroyed . | . . . . . Combat | -11 -10 -10 -10 -9 -------- Run | Yrd Mat Min Exi Min Hostile Shots Fired 97 | . 35 62 . . Missed 32 | . 13 19 . . Damage Taken 838 | . 290 474 . 74 Core 255 | . 55 163 . 37 Absorbed by Shields . | . . . . . Core Remaining (%) 100 | 100 . . . . Volleys Fired 56 | . 38 17 . 1 Largest 2 | . 2 2 . 1 Hottest 100 | . 90 90 . 100 Shots Fired 102 | . 69 32 . 1 Gun 101 | . 69 32 . . Cannon 1 | . . . . 1 Launcher . | . . . . . Special . | . . . . . Kinetic . | . . . . . Thermal 96 | . 63 32 . 1 Explosive . | . . . . . Electromagnetic 6 | . 6 . . . Robot Hit Streak 7 | . 6 7 . . Robot Miss Streak 3 | . 3 3 . . Penetration Max . | . . . . . Secondary Targets 1 | . 1 . . . Max Gunslinging Chain 1 | . 1 . . . Shots Hit Robots 68 | . 47 21 . . Core Hits 25 | . 20 5 . . Critical Kills . | . . . . . Critical Parts Destroyed . | . . . . . Critical Strikes 4 | . 4 . . . Burn 4 | . 4 . . . Melee Attacks . | . . . . . Impact . | . . . . . Slashing . | . . . . . Piercing . | . . . . . Sneak Attacks . | . . . . . Combat Hostiles . | . . . . . Follow-up Attacks . | . . . . . Damage Inflicted 852 | . 573 279 . . Guns 852 | . 573 279 . . Cannons . | . . . . . Explosions . | . . . . . Melee . | . . . . . Ramming . | . . . . . Kinetic . | . . . . . Thermal 807 | . 528 279 . . Explosive . | . . . . . Electromagnetic 45 | . 45 . . . Impact . | . . . . . Slashing . | . . . . . Piercing . | . . . . . Highest Corruption . | . . . . . Average Corruption . | . . . . . Corruption Purged . | . . . . . Corruption Blocked . | . . . . . Overload Shots . | . . . . . Overflow Damage . | . . . . . Projectiles . | . . . . . Explosions . | . . . . . Melee . | . . . . . Knockbacks . | . . . . . Impact . | . . . . . Kinetic . | . . . . . Secondary . | . . . . . Self-Inflicted Damage 74 | . . . . 74 Shots 1 | . . . . 1 Rammed . | . . . . . Targets Rammed . | . . . . . Kicked . | . . . . . Crushed . | . . . . . Highest Temperature 363 | . 230 363 . . Average Temperature 116 | . 76 195 . . Received Heat Transfer 423 | . 165 258 . . Effects 1 | . . 1 . . Shutdowns 1 | . . 1 . . Siege Activations . | . . . . . Robots Corrupted . | . . . . . Combat Hostiles . | . . . . . Parts Fried . | . . . . . Impact Corruptions . | . . . . . Robots Melted . | . . . . . Combat Hostiles . | . . . . . Parts Melted 6 | . 6 . . . Heat Transferred 2500 | . 1756 744 . . Parts Sabotaged . | . . . . . Parts Stolen . | . . . . . Parts Stripped . | . . . . . Power Chain Reactions . | . . . . . Alert | -11 -10 -10 -10 -9 ------- Run | Yrd Mat Min Exi Min Peak Influence 238 | . 238 40 . . Initial 10 | . . 10 . . Average 60 | . 121 10 . . Maximum Alert Level 1 | . 1 . . . Low Security (%) 92 | 100 82 100 . 100 Level 1 7 | . 17 . . . Level 2 . | . . . . . Level 3 . | . . . . . Level 4 . | . . . . . Level 5 . | . . . . . High Security . | . . . . . Max Security . | . . . . . Squads Dispatched 1 | . 1 . . . Investigation . | . . . . . Extermination . | . . . . . Reinforcement 1 | . 1 . . . Assault . | . . . . . Garrison . | . . . . . Intercept . | . . . . . Searches Triggered . | . . . . . Construction Impeded . | . . . . . Haulers Reinforced . | . . . . . Active Scanning Responses . | . . . . . Cargo Convoy Interrupts . | . . . . . Stealth | -11 -10 -10 -10 -9 --------- Run | Yrd Mat Min Exi Min Distress Signals 2 | . 2 . . . Communications Jammed . | . . . . . Distress Signals . | . . . . . Times Spotted 19 | . 12 7 . . Peak Tracking Total 5 | . 4 5 . . Tactical Retreats . | . . . . . Traps | -11 -10 -10 -10 -9 ------- Run | Yrd Mat Min Exi Min Traps Triggered . | . . . . . Indirectly . | . . . . . Trap Hack Attempts . | . . . . . Triggered . | . . . . . Disarmed . | . . . . . Reprogrammed . | . . . . . Reused . | . . . . . Traps Extracted . | . . . . . Installed . | . . . . . Triggered . | . . . . . Machines | -11 -10 -10 -10 -9 ---------- Run | Yrd Mat Min Exi Min Machines Disabled 3 | . 3 . . . Max in Single Turn 1 | . 1 . . . Machines Repaired . | . . . . . Machines Dismantled . | . . . . . Machines Sabotaged . | . . . . . Overloaded Fab Kills . | . . . . . Hacking | -11 -10 -10 -10 -9 --------- Run | Yrd Mat Min Exi Min Machines Accessed 5 | . 3 . 2 . Terminals 3 | . 3 . . . Fabricators . | . . . . . Repair Stations . | . . . . . Recycling Units . | . . . . . Scanalyzers . | . . . . . Garrison Access . | . . . . . Total Hacks 17 | . 7 . 10 . Successful 15 | . 5 . 10 . Failed 2 | . 2 . . . Catastrophic 1 | . 1 . . . Database Lockouts . | . . . . . Manual 1 | . . . 1 . Terminals 7 | . 7 . . . Fabricators . | . . . . . Repair Stations . | . . . . . Recycling Units . | . . . . . Scanalyzers . | . . . . . Garrison Access . | . . . . . Terminal Hacks 15 | . 5 . 10 . Record 9 | . . . 9 . Robot Analysis 1 | . 1 . . . Branch Access Points 1 | . 1 . . . Unreport Threat 1 | . 1 . . . Registered Components 1 | . 1 . . . Zone Layout 1 | . 1 . . . Derelict Proto ID Bank 1 | . . . 1 . Fabricator Hacks . | . . . . . Repair Station Hacks . | . . . . . Recycling Unit Hacks . | . . . . . Scanalyzer . | . . . . . Garrison Access Hacks . | . . . . . Unauthorized Hacks . | . . . . . Terminals . | . . . . . Fabricators . | . . . . . Repair Stations . | . . . . . Recycling Units . | . . . . . Scanalyzers . | . . . . . Garrison Access . | . . . . . Data Cores Recovered . | . . . . . Used . | . . . . . Hacking Detections 2 | . 2 . . . Full Trace Events . | . . . . . Feedback Events . | . . . . . Feedback Blocked . | . . . . . Robot Schematics Acquired . | . . . . . Robots Built . | . . . . . Authchips . | . . . . . Time . | . . . . . Total Robot Build Rating . | . . . . . Part Schematics Acquired . | . . . . . Parts Built . | . . . . . Authchips . | . . . . . Time . | . . . . . Total Part Build Rating . | . . . . . Parts Repaired . | . . . . . Time . | . . . . . Parts Recycled . | . . . . . Recycled Matter . | . . . . . Retrieved Matter . | . . . . . Retrieved Components . | . . . . . Parts Scanalyzed . | . . . . . Part Schematics Acquired . | . . . . . Parts Damaged . | . . . . . Bothacking | -11 -10 -10 -10 -9 ------------ Run | Yrd Mat Min Exi Min Used RIF Installer . | . . . . . Robots Hacked . | . . . . . Non-combat . | . . . . . Combat . | . . . . . Robot Hacks Applied . | . . . . . Relay Couplers Released . | . . . . . Fabnet Peak Effective % . | . . . . . Robots Rewired . | . . . . . Allies Hacked . | . . . . . Hacks Repelled . | . . . . . Allies | -11 -10 -10 -10 -9 -------- Run | Yrd Mat Min Exi Min Total Allies . | . . . . . Largest Group . | . . . . . Highest-Rated Group . | . . . . . Highest-Rated Ally . | . . . . . Total Orders . | . . . . . Ally Attacks . | . . . . . Total Damage . | . . . . . Kills . | . . . . . Allies Corrupted . | . . . . . Allies Melted . | . . . . . Intel | -11 -10 -10 -10 -9 ------- Run | Yrd Mat Min Exi Min Robot Analysis Total 1 | . 1 . . . Derelict Logs Recovered 2 | . . 1 . 1 Drone Launches . | . . . . . Drone Recoveries . | . . . . . Exploration | -11 -10 -10 -10 -9 ------------- Run | Yrd Mat Min Exi Min Turns Passed 1268 | 46 460 467 258 37 Spaces Moved 662 | 34 297 65 238 28 Core 22 | 6 . 16 . . Treads . | . . . . . Legs . | . . . . . Wheels 640 | 28 297 49 238 28 Hover . | . . . . . Flight . | . . . . . Fastest Speed 50 | 50 100 100 100 115 Average Speed 106 | 91 100 139 107 115 Slowest Speed 250 | 100 100 250 115 115 Overloaded Moves . | . . . . . Propulsion Burnouts . | . . . . . Robots Hopped . | . . . . . Cave-ins Triggered . | . . . . . Exploration Rate (%) 30 | 3 54 16 60 17 Regions Visited 4 Branch Regions 3 Pre-discovered Areas 1 | . . . 1 . Known Exits Taken 1 | . 1 . . . Unknown Exits Taken 3 | 1 . 1 1 . Scrap Searched 1 | . . . . 1 Spaces Dug . | . . . . . Terrain Destroyed 7 | . . . . 7 Melee . | . . . . . Projectile 1 | . . . . 1 AOE 6 | . . . . 6 Terrain Rammed . | . . . . . Walls Destroyed . | . . . . . Machines Disabled . | . . . . . Actions | -11 -10 -10 -10 -9 --------- Run | Yrd Mat Min Exi Min Total 1123 | 48 391 411 240 33 Wait 377 | 2 44 329 . 2 Move 658 | 33 296 64 237 28 Hop . | . . . . . Pick Up 19 | 7 9 . 1 2 Fast Attach . | . . . . . Attach 11 | 6 2 1 2 . Detach . | . . . . . Swap 1 | . 1 . . . Drop 1 | . 1 . . . Fire 56 | . 38 17 . 1 Melee . | . . . . . Ram . | . . . . . Kick . | . . . . . Crush . | . . . . . Escape Stasis . | . . . . . Rewire . | . . . . . Trap . | . . . . . Miscellaneous . | . . . . . Route ------- -11/Scrapyard -10/Materials (discovered 3 exits: [*Mat x2] / *Min) -10/Mines -10/Exiles -9/Mines History --------- Turn | Location | Event 14 | -11/Scrapyard | Discovered new exit (range 16) 47 | -11/Scrapyard | Entered Materials 74 | -10/Materials | Discovered new exit (range 18) 234 | -10/Materials | Discovered new exit (range 5) 302 | -10/Materials | Build established: Mutant 331 | -10/Materials | Identified exit to Mines 507 | -10/Materials | Entered Mines 536 | -10/Mines | Excavation squad dispatched 536 | -10/Mines | A large section of the Mines collapsed 786 | -10/Mines | Excavation squad dispatched 910 | -10/Mines | Learned Materials terminal intel 916 | -10/Mines | Core integrity fell below 50% 964 | -10/Mines | Deemed a non-threat by the Exiles lab entrance 964 | -10/Mines | Discovered new exit (range 5) 968 | -10/Mines | Lost 5 parts (1p1n1u2w) 970 | -10/Mines | Core integrity fell below 20% 974 | -10/Mines | Entered Exiles 1000 | -10/Exiles | Met 8R-AWN 1014 | -10/Exiles | Met EX-HEX 1046 | -10/Exiles | Met EX-BIN 1058 | -10/Exiles | Aligned with FarCom system 1059 | -10/Exiles | Given EX-Vault access code 1082 | -10/Exiles | Opened EX-Vault 1095 | -10/Exiles | Found YOLO Cannon 1123 | -10/Exiles | Warned to stay clear of 0b10 Research branches 1130 | -10/Exiles | Exiles lab attacked by MAIN.C 1186 | -10/Exiles | Learned location of Zion (-6) 1217 | -10/Exiles | Discovered new exit (range 14) 1232 | -10/Exiles | Left Exiles lab with YOLO Cannon 1232 | -10/Exiles | Entered Mines 1269 | -9/Mines | Destroyed self with YOLO Cannon Last Messages --------------- GOAL=ESCAPE 01232_ Receiving FarCom transmissions... 01233_ AM-PHS: "That was close. Too bad in all the rush we got split up from the others." 01248_ AM-PHS: "Oh no, it's like what happened to the Exiles when they were wandering homeless, only there's no Warlord to save us!" 01253_ Acquired derelict log, extracted data. Data stored: Storage entrances (x1). 01262_ Searching scrap... 01262_ Found Particle Cannon. 01262_ Found Terrain Scanner. 01262_ Found Med. Laser. 01262_ Found Lrg. Matter Pod. 01262_ Found 20 Matter. 01263_ Acquired 20 matter. 01264_ Acquired Particle Cannon. 01267_ Acquired Med. Laser. 01269_ Lgt. Armor Plating destroyed. 01269_ Destroyed Lgt. Armor Plating. Map ----- +----------------------------------------------------+ | ?????????????????????????????????????????????????? | | ?????????????????????????????????????????????????? | | ?????????????????????????????????????????????????? | | ?????????????????????????????????????????????????? | | ?????????????????????????????????????????????????? | | ?????????????????????????????????????????????????? | | ?????????????????????????????????????????????????? | | ?????????????????????????????????????????????????? | | ?????????????????????????????????????????????????? | | ?????????????????????????????????????????????????? | | ?????????????????????????????????????????????????? | | ?????#####???????????????????????????????????????? | | ????## #??????????????????????????????????????? | | ????# #?????????????????????????????????????? | | ???## #????????????###??????????????????????? | | ???# ##??????????? ??????????????????????? | | ???? ###?????????"""??????????????????????? | | ????? ##????????"""??????????????????????? | | ?????? #????????"""??????????????????????? | | ???????# #???????? ??????????????????????? | | ????????# #????????# #??????????????????????? | | ???????## #????????# #??????????????????????? | | ??????## #???????## #??????????????????????? | | ?????## ##?????###; ;??????????????????????? | | ?????# ##??????# ! ;??????????????????????? | | ?????# #####????# ##@;??????????????????????? | | ????## ## ##???# ## ;??????????????????????? | | ????# ##### ## #??????????????????????? | | """ ## #??????????????????????? | | """ ######### #??????????????????????? | | """ ##???????# #??????????????????????? | | #????????# #??????????????????????? | | ### ???????? ??????????????????????? | | #??## ??????? k ??????????????????????? | | ##????# #####??????###??????????????????????? | | ?????? ##???????????????????????????????????? | | ????? #????????????????????????????????????? | | ???? ##????????????????????????????????????? | | ????## #?????????????????????????????????????? | | ?????## #?????????????????????????????????????? | | ??????# ?????????????????????????????????????? | | ??????# ?????????????????????????????????????? | | ??????? ??????????????????????????????????????? | | ?????????????????????????????????????????????????? | | ?????????????????????????????????????????????????? | | ?????????????????????????????????????????????????? | | ?????????????????????????????????????????????????? | | ?????????????????????????????????????????????????? | | ?????????????????????????????????????????????????? | | ?????????????????????????????????????????????????? | +----------------------------------------------------+ Best States ------------- Heat Dissipation 25 Energy Generation 10 Energy Capacity 250 Matter Stores 258 Matter Capacity 300 Sight Range 16 Robot Scan Range 14 Terrain Scan Density 10 Armor Coverage 150 Evasion (%) 40 Item Schematics ----------------- None Robot Schematics ------------------ None Fabricated ------------ Nothing Alien Tech Used ----------------- None Achievements -------------- None Challenges ------------ None Game ------ Seed SpikedGravityCanceller Manual? 0 Play Time 00:13:32 Cumulative 90.6 hours Start 2024.03.27 @ 17:57:36 End 2024.03.27 @ 18:10:28 Sessions 1 Manual Loads 0 Difficulty Rogue Special Mode None Game No. 88 Rogue 86 Adventurer 0 Explorer 2 Win Type - Total 0 Types 0/0/0/0/0/0/0/0/0 Lore% 25 Gallery% 38 Achievement% 25 Wizard Run 0 Options --------- Layout 1 ASCII 0 Keyboard 0 Movement Mouse Keybinds 0 Fullscreen 2 Font 48/Terminus Map View 50x35 Zoom Use 0% Tactical HUD 1 Map Filters NONE Filters NONE Steam 1 RUN: 77f067c1-6ba2-4bc6-8b83-6ff77bb0319d